bitfinex/quotes_SOLUSD_20240708
["timestamp","ask_amount","ask_price","bid_price","bid_amount"]
[1720427593216,21.88,138.05,137.93,16.5863]
[1720427593419,21.88,138.05,137.89,6.5696]
[1720427593647,100.0,138.04,137.89,6.5696]
[1720427593944,21.88,138.03,137.89,6.5696]
[1720427594243,0.17,138.02,137.89,6.5696]
[1720427594442,0.17,138.02,137.89,8.24720752]
[1720427594667,21.88,138.08,137.9,1.67748586]
[1720427594946,44.17,138.09,137.9,1.67748586]
[1720427594947,21.98,138.09,137.9,1.67748586]
[1720427595128,21.98,138.09,137.91,15.064]
[1720427595322,21.98,138.09,137.92,21.67724261]
[1720427596021,21.88,138.08,137.92,65.74724261]
[1720427596221,0.1,138.09,137.94,16.2951]
[1720427596436,0.1,138.09,137.95,20.0]
[1720427596828,0.1,138.09,137.96,1.67675631]
[1720427597055,0.1,138.09,137.97,22.4748]
[1720427597344,0.1,138.09,137.98,20.0]
[1720427598447,0.1,138.09,137.99,1.67639177]
[1720427599161,21.88,138.08,137.99,1.67639177]
[1720427599359,21.88,138.06,137.97,16.2951]
[1720427599559,0.1,138.09,137.98,6.1797]
[1720427599725,0.1,138.09,137.99,1.44592981]
[1720427599926,0.1,138.09,138.0,1.44582502]
[1720427600127,0.1,138.09,138.0,16.2951]
[1720427600665,0.1,138.09,138.01,1.67614883]
[1720427601035,0.1,138.09,138.01,21.67614883]
[1720427601635,22.7367655,138.18,138.03,15.7719]
[1720427601853,21.88,138.17,138.04,21.67578456]
[1720427602055,0.8567655,138.18,138.04,21.67578456]
[1720427602257,0.3567655,138.18,138.05,1.67566317]
[1720427602556,0.3567655,138.18,138.06,22.2797]
[1720427602740,0.3567655,138.18,138.07,22.18364642]
[1720427603056,0.3567655,138.18,138.08,1.67529911]
[1720427604149,0.3567655,138.18,138.1,6.2963]
[1720427604331,0.3567655,138.18,138.11,20.0]
[1720427604726,0.3567655,138.18,138.12,1.67481393]
[1720427606668,0.3567655,138.18,138.1,6.2963]
[1720427607031,0.17,138.17,138.1,6.2963]
[1720427608131,0.17,138.17,138.09,15.07]
[1720427608433,0.3567655,138.18,138.09,15.07]
[1720427609562,0.3567655,138.18,138.1,20.0]
[1720427609732,0.3567655,138.18,138.09,15.07]
[1720427610233,22.2367655,138.18,138.09,15.07]
[1720427610938,0.17,138.17,138.09,15.07]
[1720427611861,0.17,138.17,137.98,6.6062]
[1720427611862,21.88,138.14,137.98,6.6062]
[1720427612045,0.17,138.13,137.99,1.44333953]
[1720427612359,0.3567655,138.18,138.05,6.0469]
[1720427612670,0.3567655,138.18,138.07,16.084]
[1720427612965,0.3567655,138.18,138.08,1.44747503]
[1720427613170,0.3567655,138.18,138.08,3.12277414]
[1720427613546,0.3567655,138.18,138.08,21.67529911]
[1720427613749,0.3567655,138.18,138.07,16.084]
[1720427613959,21.88,138.17,138.07,16.084]
[1720427614853,0.3567655,138.18,138.07,16.084]
[1720427615363,0.3567655,138.18,138.05,6.0469]
[1720427615364,22.05,138.17,138.05,6.0469]
[1720427615666,22.05,138.17,138.02,16.6099]
[1720427616345,21.88,138.16,138.03,1.67590597]
[1720427616549,0.17,138.15,138.03,1.67590597]
[1720427616747,0.17,138.15,138.02,16.6099]
[1720427616748,21.88,138.14,138.02,16.6099]
[1720427616949,0.17,138.13,138.03,1.44629142]
[1720427617871,0.3567655,138.18,138.03,6.519]
[1720427618062,0.3567655,138.18,138.04,1.67578456]
[1720427618782,0.3567655,138.18,138.04,21.67578456]
[1720427619074,22.05,138.17,138.04,21.67578456]
[1720427620966,0.17,138.17,138.04,21.67578456]
[1720427621345,22.05,138.17,138.04,21.67578456]
[1720427622151,22.05,138.17,138.04,20.0]
[1720427623649,21.88,138.15,138.04,20.0]
[1720427623877,0.17,138.14,138.04,20.0]
[1720427625676,22.05,138.14,138.04,20.0]
[1720427625847,21.88,138.14,138.04,20.0]
[1720427626048,0.3567655,138.18,138.04,20.0]
[1720427626269,0.3567655,138.18,138.05,1.67566317]
[1720427627151,21.88,138.16,138.05,1.67566317]
[1720427627578,21.88,138.16,138.04,20.0]
[1720427627762,0.17,138.15,138.04,20.0]
[1720427629576,0.1,138.19,138.13,22.4691]
[1720427629759,0.1,138.19,138.14,20.0]
[1720427630357,0.1,138.19,138.13,22.4691]
[1720427630752,0.1,138.19,138.15,7.238]
[1720427630962,0.1,138.19,138.15,1.34277148]
[1720427631163,0.1,138.19,138.17,18.0931]
[1720427631362,0.1,138.19,138.18,8.57937995]
[1720427631568,0.1,138.19,138.17,25.3305]
[1720427631792,0.1,138.19,138.18,7.2369]
[1720427631956,0.1,138.19,138.18,72.2369]
[1720427632663,0.1,138.29,138.23,7.2341]
[1720427633075,0.1,138.29,138.22,7.2348]
[1720427633265,0.1,138.29,138.22,18.0867]
[1720427633599,0.1,138.29,138.23,45.0]
[1720427633891,0.1,138.29,138.25,18.0831]
[1720427634704,0.1,138.29,138.22,40.1418]
[1720427634874,0.1,138.29,138.23,20.0]
[1720427635075,0.1,138.29,138.22,15.6382]
[1720427635587,0.1,138.29,138.21,7.2353]
[1720427635787,0.17,138.28,138.21,7.2353]
[1720427636089,0.17,138.28,138.18,21.1675]
[1720427636687,0.17,138.28,138.2,7.2358]
[1720427636990,0.17,138.28,138.18,21.1675]
[1720427637169,0.17,138.28,138.19,7.2359]
[1720427637367,0.17,138.28,138.21,7.2353]
[1720427637594,0.1,138.29,138.21,7.2348]
[1720427638171,0.1,138.29,138.19,18.0897]
[1720427638367,0.1,138.29,138.21,7.2349]
[1720427638574,0.1,138.29,138.21,7.2353]
[1720427638793,0.1,138.29,138.22,7.2346]
[1720427638994,0.1,138.29,138.2,7.2358]
[1720427639171,0.1,138.29,138.21,7.2351]
[1720427639589,0.1,138.29,138.2,7.2358]
[1720427640193,0.1,138.29,138.18,21.1675]
[1720427640194,0.1,138.29,138.21,18.0874]
[1720427640402,0.1,138.29,138.23,7.2343]
[1720427640705,0.1,138.29,138.21,18.0874]
[1720427640991,0.1,138.29,138.22,20.0]
[1720427641300,0.1,138.29,138.23,7.234]
[1720427641497,0.1,138.29,138.21,18.0874]
[1720427641685,0.1,138.29,138.18,28.4039]
[1720427641879,0.1,138.29,138.2,7.2356]
[1720427642220,0.1,138.29,138.18,21.1675]
[1720427642582,0.1,138.29,138.24,7.2337]
[1720427642902,0.1,138.29,138.19,55.48352308]
[1720427643072,0.1,138.29,138.2,21.67384443]
[1720427643277,0.1,138.29,138.21,11.85352308]
[1720427643604,0.1,138.29,138.22,21.67360223]
[1720427643816,0.1,138.29,138.28,7.2317]
[1720427644405,0.1,138.29,138.27,7.2321]
[1720427644801,0.1,138.29,138.28,7.2317]
[1720427645208,0.1,138.29,138.22,33.52712531]
[1720427645477,0.1,138.29,138.28,7.2317]
[1720427645668,0.1,138.29,138.28,27.2317]
[1720427645887,0.1,138.29,138.23,35.66364332]
[1720427645888,0.1,138.29,138.23,27.51052308]
[1720427646105,0.1,138.29,138.23,15.657]
[1720427647010,0.1,138.29,138.18,50.8667]
[1720427647222,0.1,138.29,138.18,7.2367]
[1720427647223,0.17,138.28,138.18,7.2367]
[1720427647418,0.17,138.28,138.18,7.2368]
[1720427647619,0.17,138.28,138.17,7.237]
[1720427647789,0.17,138.28,138.16,22.1472]
[1720427648000,0.17,138.28,138.17,18.0932]
[1720427648303,0.17,138.28,138.16,22.1472]
[1720427648607,0.27,138.29,138.16,22.1472]
[1720427648806,0.1,138.29,138.16,22.1472]
[1720427649304,21.87,138.29,138.16,22.1472]
[1720427649515,21.87,138.29,138.18,7.2368]
[1720427650210,0.17,138.28,138.17,18.0932]
[1720427650411,0.17,138.28,138.18,27.2367]
[1720427650617,0.1,138.29,138.19,7.2363]
[1720427650918,0.1,138.29,138.2,20.0]
[1720427651296,21.87,138.29,138.2,20.0]
[1720427651484,21.87,138.29,138.16,40.2421]
[1720427651690,21.77,138.27,138.16,34.1393]
[1720427652003,21.77,138.27,138.16,41.3772]
[1720427652195,0.17,138.26,138.16,41.3772]
[1720427652595,0.17,138.26,138.17,7.2374]
[1720427652902,21.77,138.27,138.16,34.1393]
[1720427653222,21.77,138.27,138.18,7.2368]
[1720427653522,21.77,138.27,138.16,34.1393]
[1720427653819,21.77,138.27,138.17,7.2369]
[1720427654316,0.17,138.26,138.16,41.3771]
[1720427654505,0.17,138.26,138.17,20.0]
[1720427655011,21.77,138.24,138.06,15.993]
[1720427655211,6.5867,138.25,138.06,15.993]
[1720427655212,21.77,138.22,138.07,7.2425]
[1720427655396,21.77,138.22,138.06,15.993]
[1720427655602,37.3943,138.2,138.05,25.3525]
[1720427655799,21.77,138.18,138.05,18.1093]
[1720427656007,0.17,138.17,138.05,18.1093]
[1720427656196,0.17,138.17,138.05,25.3529]
[1720427656797,21.94,138.17,138.05,25.3529]
[1720427657003,21.94,138.17,138.04,7.2442]
[1720427657294,21.94,138.17,138.01,59.703]
[1720427657295,21.94,138.17,138.05,7.2436]
[1720427657510,21.94,138.17,138.02,18.1131]
[1720427657824,21.94,138.17,138.04,18.1097]
[1720427657825,0.17,138.17,138.04,18.1097]
[1720427658001,21.77,138.17,138.04,18.1097]
[1720427658314,26.4655,138.16,137.96,31.4064]
[1720427658505,38.2288,138.15,137.97,18.1198]
[1720427658700,21.77,138.11,137.97,25.3676]
[1720427659004,21.77,138.09,137.98,7.2474]
[1720427659210,21.77,138.09,137.97,18.1198]
[1720427659211,0.17,138.08,137.97,25.3677]
[1720427660125,21.94,138.08,137.95,7.2486]
[1720427660327,21.94,138.08,137.96,8.60070685]
[1720427660525,21.94,138.08,137.95,7.2489]
[1720427660903,0.17,138.08,137.95,7.2489]
[1720427661210,21.77,138.05,137.91,22.3615]
[1720427661529,0.17,138.04,137.92,7.2504]
[1720427661695,28.3133,138.03,137.91,0.1]
[1720427661895,0.17,138.02,137.91,0.1]
[1720427663107,21.77,138.01,137.91,0.1]
[1720427663403,0.17,138.0,137.91,0.1]
[1720427663615,21.77,137.99,137.91,0.1]
[1720427663920,0.17,137.98,137.91,0.1]
[1720427664510,21.77,137.97,137.91,0.1]
[1720427664705,0.17,137.96,137.91,0.1]
[1720427665423,21.77,137.96,137.91,0.1]
[1720427665734,21.77,137.92,137.91,0.1]
[1720427665924,21.94,137.92,137.81,0.1]
[1720427666104,0.17,137.91,137.81,0.1]
[1720427667145,0.17,137.92,137.81,0.1]
[1720427667800,0.17,137.92,137.82,18.1392]
[1720427668326,0.17,137.92,137.83,20.0]
[1720427669008,6.6655,137.93,137.85,18.1355]
[1720427669212,6.6655,137.93,137.83,27.2548]
[1720427669814,6.6655,137.93,137.84,7.2544]
[1720427670196,6.6655,137.93,137.83,20.0]
[1720427670197,6.6655,137.93,137.85,7.254]
[1720427670508,0.17,137.92,137.83,27.2548]
[1720427671039,0.17,137.92,137.82,18.1394]
[1720427671040,21.94,137.92,137.81,0.1]
[1720427672249,6.6655,137.93,137.83,7.2552]
[1720427672732,6.6655,137.93,137.84,20.0]
[1720427673105,6.6655,137.93,137.85,7.2542]
[1720427673305,6.6655,137.93,137.86,20.0]
[1720427674214,6.6655,137.93,137.81,18.2409]
[1720427674413,6.6655,137.93,137.82,20.0]
[1720427674635,28.4355,137.93,137.81,0.1]
[1720427675150,41.77,137.92,137.81,0.1]
[1720427675310,0.17,137.91,137.81,0.1]
[1720427676337,21.94,137.91,137.81,0.1]
[1720427677415,15.1635,137.9,137.81,0.1]
[1720427677620,0.17,137.89,137.81,0.1]
[1720427680758,21.77,137.92,137.81,0.1]
[1720427681620,21.77,137.9,137.81,0.1]
[1720427682045,21.77,137.88,137.81,0.1]
[1720427682256,21.77,137.85,137.81,0.1]
[1720427682454,0.17,137.84,137.81,0.1]
[1720427682640,21.77,137.86,137.81,0.1]
[1720427683735,21.77,137.84,137.81,0.1]
[1720427684141,0.17,137.83,137.81,0.1]
[1720427685047,3.9967,137.83,137.71,16.3385]
[1720427685357,21.77,137.82,137.71,0.1]
[1720427685562,21.77,137.78,137.56,7.54937706]
[1720427685778,21.77,137.72,137.56,7.54937706]
[1720427686063,21.77,137.7,137.52,34.5155]
[1720427686236,21.77,137.68,137.52,34.5155]
[1720427686432,21.94,137.69,137.53,35.91]
[1720427686731,21.94,137.69,137.55,15.0]
[1720427686928,21.94,137.69,137.57,35.91]
[1720427687367,10.1075,137.79,137.57,50.91]
[1720427687584,21.77,137.77,137.57,50.91]
[1720427687726,21.77,137.78,137.57,50.91]
[1720427687925,21.77,137.76,137.57,50.91]
[1720427688525,21.77,137.76,137.57,15.0]
[1720427688728,21.77,137.76,137.58,43.99]
[1720427688975,121.77,137.78,137.58,43.99]
[1720427689128,21.77,137.76,137.62,16.2055]
[1720427689328,0.17,137.75,137.62,16.2055]
[1720427689554,21.77,137.74,137.62,16.2055]
[1720427690260,21.77,137.74,137.63,20.0]
[1720427690568,21.77,137.78,137.64,45.0]
[1720427691337,21.77,137.76,137.64,45.0]
[1720427692143,21.77,137.74,137.63,20.0]
[1720427692359,21.77,137.74,137.64,45.0]
[1720427693145,21.77,137.76,137.63,20.0]
[1720427693542,21.77,137.76,137.64,45.0]
[1720427693744,21.77,137.76,137.63,20.0]
[1720427694146,21.77,137.74,137.63,20.0]
[1720427694338,0.17,137.73,137.63,20.0]
[1720427695259,0.17,137.73,137.62,16.2055]
[1720427695489,21.77,137.72,137.57,16.2401]
[1720427695970,0.17,137.71,137.57,16.2401]
[1720427696770,21.77,137.7,137.57,16.2401]
[1720427696943,21.77,137.68,137.57,16.2401]
[1720427697143,0.17,137.67,137.57,16.2401]
[1720427698373,0.17,137.68,137.57,16.2401]
[1720427699481,0.17,137.68,137.58,20.0]
[1720427700268,21.77,137.73,137.58,20.0]
[1720427700776,21.77,137.71,137.58,20.0]
[1720427700948,21.77,137.69,137.58,20.0]
[1720427701659,21.77,137.69,137.57,16.2401]
[1720427701855,0.17,137.68,137.57,16.2401]
[1720427702964,0.17,137.68,137.58,20.0]
[1720427703461,21.77,137.71,137.58,20.0]
[1720427703869,43.99,137.64,137.51,0.1]
[1720427704174,21.77,137.63,137.51,0.1]
[1720427704394,141.77,137.63,137.51,0.1]
[1720427704682,121.77,137.61,137.51,0.1]
[1720427704856,21.77,137.59,137.51,0.1]
[1720427705047,21.77,137.57,137.51,0.1]
[1720427705382,0.17,137.56,137.51,0.1]
[1720427706247,21.77,137.55,137.51,0.1]
[1720427706452,21.77,137.5,137.41,0.49019939]
[1720427706773,21.77,137.48,137.41,0.49019939]
[1720427707318,0.17,137.54,137.41,0.49019939]
[1720427707319,21.77,137.46,137.41,0.49019939]
[1720427707447,0.17,137.45,137.41,0.49019939]
[1720427707650,0.17,137.47,137.41,0.49019939]
[1720427708668,20.0,137.51,137.41,0.49019939]
[1720427708981,100.0,137.6,137.41,0.49019939]
[1720427709351,21.77,137.55,137.41,0.49019939]
[1720427709573,4.9990746,137.65,137.44,15.0]
[1720427709751,43.99,137.57,137.46,15.0]
[1720427709948,187.98,137.62,137.46,15.0]
[1720427710579,143.99,137.62,137.5,15.0]
[1720427710755,143.99,137.62,137.48,15.0]
[1720427710756,43.99,137.62,137.48,15.0]
[1720427710955,43.99,137.62,137.51,15.0]
[1720427711177,43.99,137.62,137.48,15.0]
[1720427711449,43.99,137.62,137.5,15.0]
[1720427711876,100.0,137.61,137.45,15.0]
[1720427712174,100.0,137.6,137.43,15.0]
[1720427712478,43.99,137.58,137.43,15.0]
[1720427712775,65.17,137.57,137.46,15.0]
[1720427712977,65.17,137.57,137.43,15.0]
[1720427713181,65.17,137.57,137.47,15.0]
[1720427713367,20.17,137.57,137.47,15.0]
[1720427713589,0.17,137.57,137.47,15.0]
[1720427713784,20.0,137.59,137.49,15.0]
[1720427713992,20.0,137.61,137.44,33.1894]
[1720427714198,120.0,137.61,137.44,15.0]
[1720427714499,20.0,137.61,137.44,15.0]
[1720427714712,143.99,137.62,137.48,15.0]
[1720427715084,43.99,137.62,137.48,15.0]
[1720427715516,6.1737,137.65,137.52,15.0]
[1720427715810,6.1737,137.65,137.54,15.0]
[1720427717007,6.1737,137.65,137.52,30.2181]
[1720427717327,6.1737,137.65,137.54,15.0]
[1720427717683,20.0,137.64,137.56,15.0]
[1720427717920,20.0,137.66,137.54,15.0]
[1720427718120,88.99,137.65,137.54,15.0]
[1720427718292,0.17,137.64,137.54,15.0]
[1720427718611,0.17,137.64,137.52,15.2181]
[1720427718834,0.17,137.64,137.53,15.0]
[1720427719518,65.17,137.64,137.53,15.0]
[1720427719691,20.17,137.64,137.53,15.0]
[1720427720817,45.0,137.63,137.52,15.2181]
[1720427721118,20.17,137.62,137.52,15.2181]
[1720427721689,20.0,137.61,137.52,15.2181]
[1720427721889,0.17,137.6,137.52,15.2181]
[1720427722289,0.17,137.6,137.5,6.5406]
[1720427722290,100.0,137.59,137.5,6.5406]
[1720427722499,120.17,137.58,137.47,15.2967]
[1720427722727,88.99,137.57,137.44,6.6615]
[1720427722896,20.0,137.56,137.44,6.6615]
[1720427723210,45.17,137.55,137.44,6.6615]
[1720427723392,20.0,137.54,137.44,6.6615]
[1720427723592,0.17,137.53,137.44,6.6615]
[1720427723920,0.17,137.53,137.43,15.0]
[1720427724127,89.16,137.53,137.43,15.0]
[1720427724295,20.0,137.52,137.43,15.0]
[1720427724510,0.17,137.51,137.43,15.0]
[1720427725191,0.17,137.51,137.47,15.0]
[1720427725389,0.17,137.51,137.45,15.0]
[1720427725815,20.0,137.56,137.47,15.0]
[1720427726012,100.0,137.62,137.49,15.0]
[1720427726221,100.0,137.62,137.48,6.353]
[1720427726222,50.1114,137.65,137.51,15.0]
[1720427726611,150.1114,137.65,137.48,6.353]
[1720427726808,43.99,137.61,137.48,6.353]
[1720427727221,50.1114,137.65,137.49,30.2098]
[1720427727418,50.1114,137.65,137.5,15.0]
[1720427728230,50.1114,137.65,137.49,15.2098]
[1720427728231,50.1114,137.65,137.52,15.0]
[1720427728432,50.1114,137.65,137.51,15.0]
[1720427728657,150.1114,137.65,137.51,15.0]
[1720427729006,43.99,137.61,137.53,0.37222]
[1720427729222,20.0,137.6,137.53,0.37222]
[1720427729423,0.17,137.59,137.53,0.37222]
[1720427729631,20.0,137.6,137.53,0.37222]
[1720427730018,20.0,137.64,137.53,0.37222]
[1720427731002,45.0,137.63,137.53,0.37222]
[1720427731208,20.0,137.62,137.53,0.37222]
[1720427731436,0.17,137.61,137.53,0.37222]
[1720427733528,50.1114,137.65,137.53,0.37222]
[1720427733719,112.27436349,137.7,137.57,15.0]
[1720427733924,6.6289,137.7,137.57,21.54]
[1720427734132,6.6289,137.7,137.57,6.54]
[1720427734643,6.6289,137.7,137.58,15.0]
[1720427734863,6.6289,137.7,137.59,15.2806]
[1720427735333,105.64546349,137.74,137.59,15.2806]
[1720427735508,105.64546349,137.74,137.61,15.0]
[1720427735839,6.1099,137.75,137.63,15.0]
[1720427736019,43.99,137.76,137.63,15.0]
[1720427736238,43.99,137.76,137.61,15.0]
[1720427736458,43.99,137.76,137.6,7.2674]
[1720427736459,43.99,137.76,137.64,15.0]
[1720427736760,43.99,137.76,137.62,15.0]
[1720427737855,43.99,137.76,137.64,15.0]
[1720427738637,106.2099,137.79,137.66,15.0]
[1720427738864,0.1,137.79,137.66,21.1325]
[1720427739666,0.1,137.79,137.68,15.0]
[1720427739834,100.0,137.78,137.66,21.1325]
[1720427740235,45.0,137.77,137.66,21.1325]
[1720427740450,45.0,137.78,137.66,21.1325]
[1720427740761,20.17,137.77,137.66,15.0]
[1720427740971,20.17,137.77,137.64,15.0]
[1720427740972,67.93476346,137.76,137.64,15.0]
[1720427741134,22.93476346,137.75,137.64,15.0]
[1720427741465,1.96583686,137.74,137.64,15.0]
[1720427741645,1.96583686,137.74,137.6,6.1336]
[1720427741646,44.09,137.79,137.68,15.0]
[1720427741964,0.1,137.79,137.69,6.3471]
[1720427742337,0.1,137.79,137.7,15.0]
[1720427743040,0.1,137.79,137.69,6.3471]
[1720427743572,1.96691136,137.78,137.69,6.3471]
[1720427743771,40.98095306,137.78,137.69,6.3471]
[1720427744074,20.0,137.78,137.69,6.3471]
[1720427744248,0.1,137.79,137.69,21.3471]
[1720427744762,20.1,137.79,137.69,6.3471]
[1720427745072,20.1,137.79,137.7,15.0]
[1720427745281,20.0,137.78,137.69,6.3471]
[1720427745441,0.1,137.79,137.69,6.3471]
[1720427745940,0.1,137.79,137.71,15.0]
[1720427746476,0.1,137.79,137.77,15.0]
[1720427746688,0.1,137.79,137.75,15.0]
[1720427746966,21.06643965,137.89,137.78,6.2618]
[1720427747161,0.1,137.89,137.78,6.2618]
[1720427747391,0.1,137.89,137.79,15.0]
[1720427747660,0.1,137.89,137.78,6.2618]
[1720427747661,0.1,137.89,137.81,15.0]
[1720427747871,0.1,137.89,137.78,21.2618]
[1720427748082,0.1,137.89,137.79,7.2573]
[1720427748239,0.1,137.89,137.78,21.2618]
[1720427748443,0.1,137.89,137.81,31.4538]
[1720427750543,0.1,137.89,137.83,15.0]
[1720427750964,0.17,137.87,137.83,15.0]
[1720427751479,0.17,137.87,137.82,15.0]
[1720427751969,0.17,137.87,137.81,16.4538]
[1720427752156,0.17,137.87,137.8,15.0]
[1720427752361,0.17,137.87,137.78,6.2618]
[1720427753748,0.17,137.87,137.77,15.5053]
[1720427753945,0.17,137.87,137.7,7.2619]
[1720427753946,43.99,137.85,137.72,30.7219]
[1720427754256,65.0,137.84,137.72,15.7219]
[1720427754453,65.17,137.84,137.72,15.7219]
[1720427754669,65.17,137.84,137.55,43.99]
[1720427754670,43.99,137.81,137.67,15.936]
[1720427754906,43.99,137.77,137.67,15.936]
[1720427755177,43.99,137.77,137.59,15.0]
[1720427755178,65.17,137.76,137.6,22.3185]
[1720427755578,43.99,137.73,137.6,22.3185]
[1720427755760,65.17,137.72,137.6,22.3185]
[1720427756081,43.99,137.69,137.54,21.3825]
[1720427756383,20.17,137.68,137.56,15.0]
[1720427756584,20.17,137.68,137.54,21.3825]
[1720427757076,20.17,137.68,137.57,15.0]
[1720427757281,20.17,137.68,137.55,15.0]
[1720427757465,45.0,137.67,137.55,15.0]
[1720427757662,20.17,137.66,137.57,15.0]
[1720427757881,0.17,137.65,137.55,15.0]
[1720427758478,0.17,137.65,137.6,15.0]
[1720427758650,0.17,137.65,137.55,7.2695]
[1720427758651,0.17,137.65,137.56,15.0]
[1720427759052,0.17,137.65,137.59,15.0]
[1720427759252,0.17,137.65,137.57,15.0]
[1720427759554,100.0,137.72,137.59,15.0]
[1720427760084,100.0,137.72,137.54,6.3825]
[1720427760085,100.0,137.72,137.61,15.0]
[1720427760377,100.0,137.72,137.58,15.0]
[1720427760678,100.0,137.72,137.55,7.2699]
[1720427760975,43.99,137.76,137.62,15.0]
[1720427761189,43.99,137.76,137.64,15.0]
[1720427761362,43.99,137.76,137.64,30.9218]
[1720427761555,6.3251,137.82,137.64,30.9218]
[1720427761752,6.3251,137.82,137.69,7.2625]
[1720427762072,43.99,137.83,137.68,15.0]
[1720427762397,43.99,137.83,137.66,15.0]
[1720427762557,43.99,137.83,137.68,15.0]
[1720427762757,6.3251,137.88,137.72,15.0]
[1720427762984,6.3251,137.88,137.74,15.0]
[1720427763157,6.3251,137.88,137.76,15.0]
[1720427763357,6.3251,137.88,137.74,15.0]
[1720427764082,0.1,137.89,137.75,16.5617]
[1720427764281,0.1,137.89,137.77,15.0]
[1720427764465,0.1,137.89,137.79,15.0]
[1720427766385,0.1,137.89,137.79,22.2573]
[1720427766779,0.1,137.89,137.76,6.0081]
[1720427766780,0.1,137.89,137.81,22.2562]
[1720427767086,0.1,137.89,137.81,15.0]
[1720427767297,0.1,137.89,137.79,15.0]
[1720427767890,44.09,137.89,137.76,6.0081]
[1720427768059,20.0,137.88,137.75,16.5617]
[1720427768260,0.1,137.89,137.78,15.0]
[1720427768676,0.1,137.89,137.8,15.0]
[1720427769685,0.1,137.89,137.8,21.5638]
[1720427769990,0.1,137.89,137.83,15.0]
[1720427770759,0.1,137.89,137.85,15.0]
[1720427771482,0.1,137.89,137.82,15.0]
[1720427771666,0.1,137.89,137.84,15.0]
[1720427772062,0.1,137.89,137.82,15.0]
[1720427772507,0.1,137.89,137.84,15.0]
[1720427772791,0.17,137.88,137.81,15.0]
[1720427773177,0.17,137.88,137.79,15.0]
[1720427773966,0.17,137.88,137.75,22.8272]
[1720427773967,0.17,137.88,137.77,15.0]
[1720427774172,0.17,137.88,137.79,15.0]
[1720427774568,0.1,137.89,137.81,15.0]
[1720427774902,0.1,137.89,137.86,15.0]
[1720427775087,0.1,137.89,137.83,15.0]
[1720427775289,0.1,137.89,137.87,15.0]
[1720427775587,0.1,137.89,137.85,15.0]
[1720427776507,0.1,137.89,137.85,31.439]
[1720427776787,0.1,137.89,137.86,41.5266]
[1720427777159,0.1,137.89,137.86,21.5266]